Cogmind - Beta 17 @@@ ROGUE MODE // 2026.08.01 @ 03:31:18 Player: kite Result: Self-destructed Performance ------------- Evolutions (3) 1500 Regions Visited (8) 1600 Robots Destroyed (113) 565 Value Destroyed (3345) 3345 Prototype IDs (25) 500 Alien Tech Used (0) 0 Bonus (405) 405 TOTAL SCORE: 7915 Bonus ------- High Alert Combat Kills 50 Follower Combat Kills 104 Aligned with FarCom 300 Friendly Fire -49 Cogmind --------- Core Integrity 492/700 Matter 297/300 Energy 100/100 System Corruption 46% Temperature Cool (72) Movement Rolling (130) Ox2 Location -7/Factory Parts ------- > --- POWER (1) -------- (None) > --- PROPULSION (4) --- Compact Wheel > --- UTILITY (4) ------ High-capacity Storage Unit Improved Signal Interpreter Improved Melee Analysis Suite > --- WEAPON (4) ------- Flak Gun Spear Spear > --- INVENTORY (20) --- Light Treads Light Treads High-capacity Matter Pod (200) Improved Sensor Array Kinecellerator Microactuators Microactuators Hardened Medium Armor Plating Hardened Medium Armor Plating Layered Light Armor Plating Supersonic Drone Bay (1/1) PSU Rigger Flak Gun Flak Gun Flak Gun Flak Gun AWS/Autocannon Heavy Missile Launcher Peak State ------------ > --- POWER ------------ Micro Nuclear Core > --- PROPULSION ------- Light Treads Advanced Treads Advanced Treads Medium Treads > --- UTILITY ---------- High-capacity Storage Unit Improved Signal Interpreter Kinecellerator Layered Light Armor Plating > --- WEAPON ----------- Flak Gun Flak Gun Flak Gun Flak Gun > --- INVENTORY -------- Light Treads Light Treads Light Treads High-capacity Matter Pod High-capacity Matter Pod Improved Sensor Array Target Analyzer Hardened Light Armor Plating Hardened Medium Armor Plating Hardened Medium Armor Plating Supersonic Drone Bay PSU Rigger AWS/Autocannon Heavy Missile Launcher Heavy Missile Launcher Improved Datajack Heavy Mace Katana [Rating: 51] Favorites ----------- Power Light Ion Engine Engine Light Ion Engine Power Core Light Nuclear Core Propulsion Light Treads Treads Light Treads Leg Carbon-fiber Leg Wheel Compact Wheel Utility High-capacity Storage Unit Device Improved Sensor Array Storage High-capacity Storage Unit Processor Improved Signal Interpreter Protection Hardened Light Armor Plating Weapon Autogun Energy Gun Small Laser Energy Cannon Light EM Pulse Cannon Ballistic Gun Autogun Ballistic Cannon Mini Assault Cannon Launcher Heavy Missile Launcher Special Weapon Remote Datajack Impact Weapon Heavy Mace Slashing Weapon Katana Piercing Weapon Spear Special Melee Weapon Improved Datajack Build | -11 -10 -10 -10 -9 -8 -7 -7 -7 ------- Run | Yrd Mat Min Exi Min Mat Fac Was Fac Slots Evolved 6 | . . . . . 4 2 . . Power . | . . . . . . . . . Propulsion 2 | . . . . . 2 . . . Utility 2 | . . . . . 1 1 . . Weapon 2 | . . . . . 1 1 . . Parts Attached 83 | 6 8 . 5 . 25 28 2 9 Power 8 | 1 . . 1 . 3 3 . . Engine 4 | 1 . . 1 . . 2 . . Core 4 | . . . . . 3 1 . . Reactor . | . . . . . . . . . Propulsion 25 | 2 . . 1 . 6 11 . 5 Treads 15 | 2 . . 1 . 6 6 . . Leg 5 | . . . . . . 5 . . Wheel 5 | . . . . . . . . 5 Hover . | . . . . . . . . . Flight . | . . . . . . . . . Utility 22 | 1 4 . 1 . 8 7 . 1 Device 5 | . 1 . . . 1 3 . . Storage 3 | 1 1 . 1 . . . . . Processor 6 | . . . . . 4 1 . 1 Hackware . | . . . . . . . . . Protection 8 | . 2 . . . 3 3 . . Artifact . | . . . . . . . . . Weapon 28 | 2 4 . 2 . 8 7 2 3 Energy Gun 2 | 2 . . . . . . . . Energy Cannon 3 | . 2 . . . 1 . . . Ballistic Gun 13 | . 2 . 2 . 3 5 . 1 Ballistic Cannon 1 | . . . . . . 1 . . Launcher 3 | . . . . . 1 . 2 . Special Weapon 1 | . . . . . . 1 . . Impact Weapon 1 | . . . . . 1 . . . Slashing Weapon 1 | . . . . . 1 . . . Piercing Weapon 2 | . . . . . . . . 2 Special Melee Weapon 1 | . . . . . 1 . . . Unidentified Prototypes 2 | . . . . . 1 1 . . Parts Lost 16 | . . . . . 3 7 . 6 Power 4 | . . . . . 1 2 . 1 Propulsion 7 | . . . . . . 4 . 3 Utility 3 | . . . . . 1 1 . 1 Weapon 2 | . . . . . 1 . . 1 Highest Loss Streak 4 | . . . . . 2 2 . 4 To Critical Strikes . | . . . . . . . . . Average Backups 15 | 2 8 15 13 15 17 17 18 17 Power . | . 1 1 . . . . . . Propulsion 3 | . 3 6 5 5 2 3 . . Utility 7 | . 1 3 4 6 8 8 10 10 Weapon 4 | . 2 5 3 4 4 4 7 6 Tool/Special . | . . . . . . . . . Unused Backups 34 | . 4 . 3 . 6 7 . 14 Power 1 | . . . . . . 1 . . Propulsion 11 | . 3 . . . 5 1 . 2 Utility 13 | . . . . . 1 1 . 11 Weapon 9 | . 1 . 3 . . 4 . 1 Tool/Special . | . . . . . . . . . Average Slot Usage (%) 97 | . 98 100 95 100 99 95 100 95 Engine 5 | . 14 14 14 14 . 1 7 6 Core 4 | . . . . . 8 5 . . Treads 27 | . 27 28 28 28 35 26 23 5 Leg 1 | . . . . . . 2 7 1 Wheel 1 | . . . . . . . . 20 Device 4 | . 7 . . . . 6 15 7 Storage 9 | . 14 14 14 14 9 7 7 7 Processor 6 | . . . . . 8 7 7 13 Protection 7 | . 5 14 14 14 8 7 . . Energy Gun 2 | . 20 . . . . . . . Ballistic Gun 17 | . 6 28 23 28 25 10 29 8 Impact Weapon 1 | . . . . . . 4 . . Slashing Weapon 2 | . . . . . . 5 . 5 Piercing Weapon 1 | . . . . . . . . 13 Special Melee Weapon 1 | . . . . . . 4 . . Peak Build Rating 51 | 6 12 12 16 16 30 51 47 47 Average Rating 28 | 4 9 12 13 16 25 41 47 42 On Entrance 20 | . 6 12 12 16 16 30 47 47 Avg Prop Armor Cover (%) 10 | . . . . . . 3 3 16 Naked Turns . | . . . . . . . . . Heaviest Build 73 | 10 34 34 54 54 65 73 71 71 Greatest Support 92 | 40 40 40 40 40 80 92 68 68 Greatest Overweight (x) 4 | . . . 1 1 . 2 1 4 Average Overweight (x) . | . . . . 1 . . 1 1 Largest Inventory Capacity 20 | 8 15 15 20 20 20 20 20 20 Average Capacity 18 | 7 13 15 16 20 20 20 20 20 Most Carried 20 | 4 15 15 16 18 20 20 20 20 Average Carried 17 | 2 8 15 15 17 19 19 19 19 Final Capacity 20 | 8 15 15 20 20 20 20 20 20 Final Carried 20 | 4 15 15 16 18 18 20 20 20 Class Distribution -------------------- 42% | Mutant 41% | Skirmisher 7% | Scavenger-Gladiator 3% | Tank Dominant Class ---------------- Mutant | -10/Materials Mutant | -10/Mines Mutant | -10/Exiles Mutant | -9/Mines Skirmisher | -8/Materials Mutant | -7/Factory Skirmisher | -7/Waste Scavenger-Gladiator | -7/Factory Resources | -11 -10 -10 -10 -9 -8 -7 -7 -7 ----------- Run | Yrd Mat Min Exi Min Mat Fac Was Fac Matter Collected 4340 | 250 258 20 200 61 1724 820 760 247 Remotely . | . . . . . . . . . Salvage Created 4998 | 26 472 20 . . 2311 1067 734 368 Parts 219 | 2 33 1 . . 108 53 3 19 Haulers Intercepted 5 | . . . . . 2 2 . 1 Recyclers Shooed 4 | 1 . . . . 2 1 . . Parts Field Recycled . | . . . . . . . . . Retrieved Matter . | . . . . . . . . . Parts Self-Destructed . | . . . . . . . . . Prevented . | . . . . . . . . . Parts Restored . | . . . . . . . . . Kills | -11 -10 -10 -10 -9 -8 -7 -7 -7 ------- Run | Yrd Mat Min Exi Min Mat Fac Was Fac Combat Hostiles Destroyed 77 | . 15 1 . . 36 18 3 4 Melee 13 | . . . . . 2 7 . 4 Guns 52 | . 15 1 . . 26 8 2 . AOE 9 | . . . . . 8 . 1 . Classes Destroyed 13 | 1 3 . . . 7 1 1 . Worker 12 | . . . . . 6 4 . 2 Builder 2 | . 1 . . . . . . 1 Tunneler 4 | 1 . . . . 2 1 . . Hauler 5 | . . . . . 2 2 . 1 Recycler 10 | . . . . . 6 2 . 2 Watcher 3 | . . . . . 3 . . . Swarmer 18 | . 6 1 . . 6 2 . 3 Grunt 41 | . 9 . . . 23 9 . . Duelist 1 | . . . . . 1 . . . Sentry 10 | . . . . . 5 4 . 1 Hunter 1 | . . . . . 1 . . . Programmer 3 | . . . . . . 3 . . Compactor 3 | . . . . . . . 3 . Best Kill Streak 7 | 1 3 1 . . 7 3 1 3 Combat Bots Only 6 | . 3 1 . . 6 3 1 3 Max Kills in Single Turn 4 | 1 1 1 . . 4 1 1 1 Gunslinging . | . . . . . . . . . Exploded 3 | . . . . . 3 . 1 . Melee 1 | . . . . . 1 1 . 1 Uniques/NPCs Destroyed . | . . . . . . . . . Combat | -11 -10 -10 -10 -9 -8 -7 -7 -7 -------- Run | Yrd Mat Min Exi Min Mat Fac Was Fac Hostile Shots Fired 474 | . 68 9 . . 128 198 . 71 Missed 127 | . 15 1 . . 24 66 . 21 Hits 347 | . 53 8 . . 104 132 . 50 Projectile 347 | . 53 8 . . 104 132 . 50 Critical Strikes 11 | . . . . . 8 3 . . Damage Taken 4423 | . 566 70 . . 1630 1708 . 449 Core 604 | . 162 10 . . 224 115 . 93 Absorbed by Shields . | . . . . . . . . . Redirected to Shielding 14 | . 14 . . . . . . . Regen/Repaired (Parts) 120 | . 120 . . . . . . . Core Remaining (%) 63 | 100 . . . 31 59 . . . Volleys Fired 243 | 9 66 4 . . 128 16 17 3 Largest 4 | 2 2 2 . . 3 4 4 4 Hottest 112 | 80 80 46 . . 71 112 112 112 Shots Fired 625 | 18 131 9 . 1 340 59 58 9 Gun 613 | 18 131 9 . 1 335 59 51 9 Cannon 1 | . . . . . 1 . . . Launcher 11 | . . . . . 4 . 7 . Special . | . . . . . . . . . Kinetic 492 | . 28 9 . 1 335 59 51 9 Thermal 122 | 18 103 . . . 1 . . . Explosive 11 | . . . . . 4 . 7 . Electromagnetic . | . . . . . . . . . Robot Hit Streak 13 | 2 13 1 . . 12 13 10 3 Robot Miss Streak 9 | 7 7 3 . . 4 9 8 4 Penetration Max . | . . . . . . . . . Secondary Targets 6 | . 2 . . . 3 1 . . Max Gunslinging Chain 1 | . 1 . . . 1 1 . . Shots Hit Robots 483 | 5 83 2 . . 220 95 54 24 Core Hits 256 | 2 28 1 . . 101 72 38 14 Critical Kills . | . . . . . . . . . Critical Parts Destroyed . | . . . . . . . . . Critical Strikes 5 | . . . . . . 4 . 1 Sever 5 | . . . . . . 4 . 1 Melee Attacks 98 | . . . . . . 66 . 32 Impact 25 | . . . . . . 25 . . Slashing 44 | . . . . . . 40 . 4 Piercing 28 | . . . . . . . . 28 Sneak Attacks 17 | . . . . . . 12 . 5 Combat Hostiles . | . . . . . . . . . Follow-up Attacks 5 | . . . . . . 2 . 3 Damage Inflicted 10965 | 65 1001 28 . . 3927 2993 2105 846 Guns 6423 | 65 1001 28 . . 3224 862 1189 54 Cannons . | . . . . . . . . . Explosions 1649 | . . . . . 654 . 916 79 Melee 2844 | . . . . . . 2131 . 713 Ramming 49 | . . . . . 49 . . . Kinetic 5662 | . 305 28 . . 3224 862 1189 54 Thermal 761 | 65 696 . . . . . . . Explosive 1649 | . . . . . 654 . 916 79 Electromagnetic . | . . . . . . . . . Impact 872 | . . . . . . 872 . . Slashing 1396 | . . . . . . 1259 . 137 Piercing 576 | . . . . . . . . 576 Highest Corruption 46 | . 3 3 3 3 . 4 46 46 Average Corruption 12 | . 2 3 3 3 . 2 24 46 Corruption Purged . | . . . . . . . . . Corruption Blocked . | . . . . . . . . . Effects 108 | . 16 2 8 6 . 15 24 37 Message Errors 18 | . 3 . 3 1 . 2 5 4 Matter Fused 30 | . 7 1 1 1 . 3 4 13 Heat Flow Errors 20 | . . . 1 1 . 5 6 7 Energy Discharges 9 | . 1 . 1 . . 1 1 5 Data Loss (minor) 14 | . 3 . . 1 . 2 3 5 Data Loss (major) 3 | . 1 . . 1 . . 1 . Misfires 4 | . . 1 . 1 . 1 . 1 Alerts 6 | . . . 2 . . 1 2 1 Weapon Failures 4 | . 1 . . . . . 2 1 Overload Shots . | . . . . . . . . . Overflow Damage 291 | . . . . . 17 250 . 24 Projectiles . | . . . . . . . . . Explosions 17 | . . . . . 17 . . . Melee 274 | . . . . . . 250 . 24 Knockbacks 4 | . . . . . . 4 . . Impact 4 | . . . . . . 4 . . Kinetic . | . . . . . . . . . Secondary . | . . . . . . . . . Self-Inflicted Damage 57 | . . . . . 57 . . . Shots 2 | . . . . . 2 . . . Rammed 6 | . . . . . 6 . . . Targets Rammed 8 | . . . . . 8 . . . Kicked . | . . . . . . . . . Crushed 2 | . . . . . 2 . . . Highest Temperature 313 | 126 124 49 260 201 313 209 268 264 Average Temperature 81 | 57 55 24 135 95 83 80 90 103 Received Heat Transfer 1806 | . 186 . . . 891 633 . 96 Effects 5 | . . . . . 5 . . . Energy Bleed 1 | . . . . . 1 . . . Interference 4 | . . . . . 4 . . . Siege Activations . | . . . . . . . . . Martial Activations . | . . . . . . . . . Shielding Activations . | . . . . . . . . . Robots Disrupted . | . . . . . . . . . Combat Hostiles . | . . . . . . . . . Robots Corrupted 4 | . . . . . . 4 . . Combat Hostiles 3 | . . . . . . 3 . . Parts Fried 2 | . . . . . . 2 . . Impact Corruptions 8 | . . . . . . 8 . . Robots Melted . | . . . . . . . . . Combat Hostiles . | . . . . . . . . . Parts Melted 2 | . 2 . . . . . . . Heat Transferred 1725 | 150 1575 . . . . . . . Parts Sabotaged . | . . . . . . . . . Parts Stolen . | . . . . . . . . . Parts Stripped . | . . . . . . . . . Power Chain Reactions . | . . . . . . . . . Alert | -11 -10 -10 -10 -9 -8 -7 -7 -7 ------- Run | Yrd Mat Min Exi Min Mat Fac Was Fac Maximum Alert Level 2 | . . . . . 2 1 . . Low Security (%) 75 | 100 100 100 . 100 41 82 100 100 Level 1 19 | . . . . . 43 17 . . Level 2 5 | . . . . . 15 . . . Level 3 . | . . . . . . . . . Level 4 . | . . . . . . . . . Level 5 . | . . . . . . . . . High Security . | . . . . . . . . . Max Security . | . . . . . . . . . Peak Influence 569 | 5 125 79 . 15 569 289 93 131 Initial 250 | . . 22 . . . 250 93 . Average 113 | . 55 35 . . 214 89 32 47 Influence Increases 2578 | 5 432 89 . 15 1114 599 29 295 Destroy 0b10 Robot/C 1520 | . 300 60 . . 720 360 . 80 Destroy 0b10 Robot/NC 180 | 5 5 . . . 95 45 . 30 Destroy Leader 366 | . 50 10 . . 170 114 . 22 Allied During Kill 4 | . . 4 . . . . . . Successful Hack 31 | . 17 . . . 8 . . 6 Disable Machine 210 | . . . . 15 45 15 . 135 Destroy Structure 87 | . . . . . 31 5 29 22 Lose Combat Pursuer 180 | . 60 15 . . 45 60 . . Influence Decreases 2535 | 5 374 88 59 15 563 882 297 252 Entered New Map 571 | . . 36 59 . . 301 175 . Time Decay 1804 | 5 374 52 . 15 533 511 122 192 Lost Part 160 | . . . . . 30 70 . 60 Squads Dispatched 19 | . 2 . . . 6 10 . 1 Investigation 5 | . 1 . . . 3 1 . . Extermination 5 | . . . . . . 4 . 1 Reinforcement 4 | . 1 . . . 2 1 . . Assault 1 | . . . . . 1 . . . Garrison 4 | . . . . . . 4 . . Intercept . | . . . . . . . . . Searches Triggered . | . . . . . . . . . Construction Impeded . | . . . . . . . . . Haulers Reinforced 1 | . . . . . . 1 . . Active Scanning Responses . | . . . . . . . . . Cargo Convoy Interrupts . | . . . . . . . . . Stealth | -11 -10 -10 -10 -9 -8 -7 -7 -7 --------- Run | Yrd Mat Min Exi Min Mat Fac Was Fac Distress Signals 6 | . 2 . . . 2 1 . 1 Communications Jammed . | . . . . . . . . . Distress Signals . | . . . . . . . . . Times Spotted 110 | . 29 3 . . 45 21 6 6 Peak Tracking Total 7 | . 5 3 . . 6 7 3 3 Tactical Retreats 9 | . 3 1 . . 3 2 . . Traps | -11 -10 -10 -10 -9 -8 -7 -7 -7 ------- Run | Yrd Mat Min Exi Min Mat Fac Was Fac Traps Triggered 6 | . 3 . . . 1 2 . . Indirectly . | . . . . . . . . . Trap Hack Attempts 9 | . . . . . . 9 . . Triggered . | . . . . . . . . . Disarmed . | . . . . . . . . . Reprogrammed . | . . . . . . . . . Reused . | . . . . . . . . . Traps Extracted . | . . . . . . . . . Installed . | . . . . . . . . . Triggered . | . . . . . . . . . Machines | -11 -10 -10 -10 -9 -8 -7 -7 -7 ---------- Run | Yrd Mat Min Exi Min Mat Fac Was Fac Machines Disabled 14 | . . . . 1 3 1 . 9 Max in Single Turn 5 | . . . . 1 1 1 . 5 Garrison Access 1 | . . . . . 1 . . . Machines Repaired . | . . . . . . . . . Machines Dismantled . | . . . . . . . . . Machines Sabotaged . | . . . . . . . . . Overloaded Fab Kills . | . . . . . . . . . Hacking | -11 -10 -10 -10 -9 -8 -7 -7 -7 --------- Run | Yrd Mat Min Exi Min Mat Fac Was Fac Machines Accessed 16 | . 3 . 2 . 7 1 . 3 Terminals 9 | . 2 . . . 4 . . 3 Fabricators . | . . . . . . . . . Repair Stations 1 | . 1 . . . . . . . Recycling Units 1 | . . . . . 1 . . . Scanalyzers 1 | . . . . . 1 . . . Garrison Access 2 | . . . . . 1 1 . . Total Hacks 40 | . 8 . 5 . 20 1 . 6 Successful 20 | . 5 . 5 . 9 . . 1 Failed 20 | . 3 . . . 11 1 . 5 Catastrophic 6 | . 1 . . . 2 . . 3 Database Lockouts . | . . . . . . . . . Manual 22 | . 3 . 1 . 12 . . 6 Terminals 22 | . 3 . . . 13 . . 6 Fabricators . | . . . . . . . . . Repair Stations 5 | . 5 . . . . . . . Recycling Units 2 | . . . . . 2 . . . Scanalyzers 3 | . . . . . 3 . . . Garrison Access 3 | . . . . . 2 1 . . Terminal Hacks 8 | . . . 5 . 3 . . . Record 4 | . . . 4 . . . . . Part Schematic 1 | . . . . . 1 . . . Hauler Manifests 1 | . . . . . 1 . . . Registered Components 1 | . . . . . 1 . . . Proto ID Catalog 1 | . . . 1 . . . . . Fabricator Hacks . | . . . . . . . . . Repair Station Hacks 4 | . 4 . . . . . . . Scan Component 2 | . 2 . . . . . . . Repair 2 | . 2 . . . . . . . Recycling Unit Hacks 1 | . . . . . 1 . . . Retrieve Components 1 | . . . . . 1 . . . Scanalyzer 2 | . . . . . 2 . . . Insert Component 1 | . . . . . 1 . . . Analyze 1 | . . . . . 1 . . . Garrison Access Hacks 1 | . . . . . 1 . . . Seal Access 1 | . . . . . 1 . . . Unauthorized Hacks 4 | . 1 . . . 2 . . 1 Terminals 3 | . 1 . . . 1 . . 1 Botnet 3 | . 1 . . . 1 . . 1 Fabricators . | . . . . . . . . . Repair Stations . | . . . . . . . . . Recycling Units 1 | . . . . . 1 . . . Recyclers 1 | . . . . . 1 . . . Scanalyzers . | . . . . . . . . . Garrison Access . | . . . . . . . . . Data Cores Recovered . | . . . . . . . . . Used . | . . . . . . . . . Hacking Detections 13 | . 2 . . . 7 1 . 3 Full Trace Events 3 | . 1 . . . 2 . . . Feedback Events . | . . . . . . . . . Feedback Blocked . | . . . . . . . . . Robot Schematics Acquired . | . . . . . . . . . Robots Built . | . . . . . . . . . Authchips . | . . . . . . . . . Time . | . . . . . . . . . Total Robot Build Rating . | . . . . . . . . . Part Schematics Acquired 1 | . . . . . 1 . . . Parts Built . | . . . . . . . . . Authchips . | . . . . . . . . . Time . | . . . . . . . . . Total Part Build Rating . | . . . . . . . . . Part Studies Acquired . | . . . . . . . . . Parts Repaired 2 | . 2 . . . . . . . Time 52 | . 52 . . . . . . . Parts Recycled . | . . . . . . . . . Recycled Matter . | . . . . . . . . . Retrieved Matter . | . . . . . . . . . Retrieved Components 10 | . . . . . 10 . . . Parts Scanalyzed 1 | . . . . . 1 . . . Part Schematics Acquired . | . . . . . . . . . Parts Damaged . | . . . . . . . . . Bothacking | -11 -10 -10 -10 -9 -8 -7 -7 -7 ------------ Run | Yrd Mat Min Exi Min Mat Fac Was Fac Used RIF Installer . | . . . . . . . . . Robots Hacked 1 | . . . . . . 1 . . Non-combat 1 | . . . . . . 1 . . Combat . | . . . . . . . . . Robot Hacks Applied 1 | . . . . . . 1 . . find_chute 1 | . . . . . . 1 . . Relay Couplers Released . | . . . . . . . . . Fabnet Peak Effective % . | . . . . . . . . . Robots Rewired . | . . . . . . . . . Allies Hacked . | . . . . . . . . . Hacks Repelled . | . . . . . . . . . Allies | -11 -10 -10 -10 -9 -8 -7 -7 -7 -------- Run | Yrd Mat Min Exi Min Mat Fac Was Fac Total Allies 2 | . . 1 . . . . 1 . Largest Group 1 | . . 1 1 . . . 1 . Highest-Rated Group 31 | . . 31 31 . . . 31 . Highest-Rated Ally 31 | . . 31 31 . . . 31 . Total Orders . | . . . . . . . . . Ally Attacks 39 | . . 5 . . . . 34 . Total Damage 581 | . . 102 . . . . 479 . Kills 5 | . . 2 . . . . 3 . Allies Corrupted 1 | . . . . . . . 1 . Allies Melted . | . . . . . . . . . Intel | -11 -10 -10 -10 -9 -8 -7 -7 -7 ------- Run | Yrd Mat Min Exi Min Mat Fac Was Fac Active Infowar (turns) 2777 | . . . . . 2 1711 417 647 Sensors 2775 | . . . . . . 1711 417 647 Traps 2 | . . . . . 2 . . . Robot Analysis Total . | . . . . . . . . . Derelict Logs Recovered 1 | . . . . 1 . . . . Drone Launches . | . . . . . . . . . Drone Recoveries . | . . . . . . . . . Exploration | -11 -10 -10 -10 -9 -8 -7 -7 -7 ------------- Run | Yrd Mat Min Exi Min Mat Fac Was Fac Turns Passed 7669 | 118 1075 132 472 385 2464 1958 417 648 Spaces Moved 3551 | 50 414 72 262 159 1059 972 147 416 Core 1 | 1 . . . . . . . . Treads 3092 | 49 414 72 262 159 1059 909 147 21 Legs 63 | . . . . . . 63 . . Wheels 395 | . . . . . . . . 395 Hover . | . . . . . . . . . Flight . | . . . . . . . . . Fastest Speed 50 | 50 160 160 160 240 160 152 240 105 Average Speed 162 | 157 160 160 175 240 160 160 240 114 Slowest Speed 400 | 160 160 160 240 240 160 260 240 400 Overloaded Moves . | . . . . . . . . . Propulsion Burnouts . | . . . . . . . . . Robots Hopped . | . . . . . . . . . Potential Cave-ins . | . . . . . . . . . Cave-ins Triggered . | . . . . . . . . . Exploration Rate (%) 42 | 4 68 20 61 42 65 18 87 13 Regions Visited 8 Branch Regions 3 Pre-discovered Areas 1 | . . . 1 . . . . . Known Exits Taken 1 | . . . . . 1 . . . Unknown Exits Taken 5 | 1 1 1 1 1 . . . . Scrap Searched 1 | . . . . 1 . . . . Spaces Dug 10 | . . . . . . 5 . 5 Terrain Destroyed 122 | . . . . . 30 5 63 24 Melee 10 | . . . . . . 5 . 5 Projectile . | . . . . . . . . . AOE 112 | . . . . . 30 . 63 19 Terrain Rammed . | . . . . . . . . . Walls Destroyed . | . . . . . . . . . Machines Disabled . | . . . . . . . . . Actions | -11 -10 -10 -10 -9 -8 -7 -7 -7 --------- Run | Yrd Mat Min Exi Min Mat Fac Was Fac Total 4880 | 68 703 83 278 163 1639 1234 169 543 Wait 683 | . 183 8 . 3 363 71 . 55 Move 3544 | 49 413 71 261 158 1058 972 146 416 Hop . | . . . . . . . . . Pick Up 88 | 4 18 . 4 2 23 26 1 10 Fast Attach 40 | 6 9 . . . 8 11 . 6 Attach 25 | . . . 2 . 9 12 . 2 Detach 7 | . . . 2 . . 1 . 4 Swap 49 | . 1 . 3 . 14 24 4 3 Drop 94 | . 13 . 6 . 28 30 1 16 Fire 243 | 9 66 4 . . 128 16 17 3 Melee 90 | . . . . . . 62 . 28 Ram . | . . . . . . . . . Kick . | . . . . . . . . . Crush 8 | . . . . . 8 . . . Escape Stasis . | . . . . . . . . . Rewire . | . . . . . . . . . Trap 9 | . . . . . . 9 . . Miscellaneous . | . . . . . . . . . Route ------- -11/Scrapyard -10/Materials (discovered 3 exits: [*Mat] / [*Min] / [*Sub]) -10/Mines -10/Exiles (discovered 2 exits: [*Min x2]) -9/Mines -8/Materials (discovered 2 exits: *Fac x2) -7/Factory -7/Waste -7/Factory (discovered 1 exit: [*Low]) History --------- Turn | Location | Event 7 | -11/Scrapyard | Discovered new exit (range 15) 119 | -11/Scrapyard | Entered Materials 303 | -10/Materials | Build established: Mutant 413 | -10/Materials | Discovered new exit (range 9) 529 | -10/Materials | Discovered new exit (range 10) 627 | -10/Materials | Repaired Lgt. Treads 653 | -10/Materials | Repaired Lgt. Treads 688 | -10/Materials | Discovered new exit (range 13) 843 | -10/Materials | Core integrity fell below 50% 1194 | -10/Materials | Entered Mines 1197 | -10/Mines | Received a Mining Laser from a helpful Derelict 1320 | -10/Mines | Deemed a non-threat by the Exiles lab entrance 1320 | -10/Mines | Discovered new exit (range 5) 1326 | -10/Mines | Entered Exiles 1326 | -10/Exiles | Accompanied by 1 ally 1352 | -10/Exiles | Discovered new exit (range 15) 1370 | -10/Exiles | Met 8R-AWN 1394 | -10/Exiles | Met EX-HEX 1437 | -10/Exiles | Met EX-BIN 1454 | -10/Exiles | Aligned with FarCom system 1456 | -10/Exiles | Given EX-Vault access code 1496 | -10/Exiles | Opened EX-Vault 1511 | -10/Exiles | Found Supersonic Drone Bay 1518 | -10/Exiles | Found PSU Rigger 1529 | -10/Exiles | Found AWS/Autocannon 1559 | -10/Exiles | Warned to stay clear of 0b10 Research branches 1608 | -10/Exiles | Met EX-DEC 1615 | -10/Exiles | Learned location of Zion (-6) 1769 | -10/Exiles | Discovered new exit (range 14) 1798 | -10/Exiles | Stole three prototypes: Supersonic Drone Bay, PSU Rigger, AWS/Autocannon 1798 | -10/Exiles | Entered Mines 2139 | -9/Mines | Learned Materials security intel 2158 | -9/Mines | Discovered new exit (range 9) 2183 | -9/Mines | Entered Materials 2183 | -8/Materials | Evolved 4 slots: Propulsion x2, Utility x1, Weapon x1 2715 | -8/Materials | Build established: Skirmisher 3777 | -8/Materials | Discovered new exit (range 7) 3846 | -8/Materials | Identified exit to Factory 4564 | -8/Materials | Discovered exit to Factory (range 11) 4583 | -8/Materials | First assault squad dispatched 4647 | -8/Materials | Entered Factory 4647 | -7/Factory | Evolved 2 slots: Utility x1, Weapon x1 4649 | -7/Factory | FarCom data flow suspended 4833 | -7/Factory | Build established: Mutant 6051 | -7/Factory | Garrison activated, responded to threat 6111 | -7/Factory | Build established: Skirmisher 6186 | -7/Factory | Garrison activated, responded to threat 6605 | -7/Factory | Manually triggered Chute Trap 6605 | -7/Factory | Sucked down chute 6605 | -7/Factory | Entered Waste 6606 | -7/Waste | Met a frightened Derelict 6620 | -7/Waste | EMP discharged 6620 | -7/Waste | System corruption reached 10% 6625 | -7/Waste | Spotted C-40 Crusher 6634 | -7/Waste | Destroyed C-40 Crusher 6683 | -7/Waste | Spotted C-40 Crusher 6692 | -7/Waste | Spotted C-40 Crusher 6692 | -7/Waste | Destroyed C-40 Crusher 6699 | -7/Waste | Spotted C-40 Crusher 6700 | -7/Waste | Allies destroyed C-40 Crusher 6712 | -7/Waste | Spotted C-40 Crusher 6713 | -7/Waste | Allies destroyed C-40 Crusher 6720 | -7/Waste | EMP discharged 6723 | -7/Waste | Destroyed C-40 Crusher 6726 | -7/Waste | Spotted C-40 Crusher 6743 | -7/Waste | Allies destroyed C-40 Crusher 6820 | -7/Waste | EMP discharged 6893 | -7/Waste | Discovered new exit (range 15) 6920 | -7/Waste | EMP discharged 6920 | -7/Waste | System corruption reached 30% 7020 | -7/Waste | EMP discharged 7020 | -7/Waste | Identified exit to Factory 7022 | -7/Waste | Entered Factory 7371 | -7/Factory | Build established: Scavenger-Gladiator 7627 | -7/Factory | Discovered new exit (range 11) 7670 | -7/Factory | Self-destructed Last Messages --------------- 07554_ S-27 Virus destroyed. 07556_ Acquired 28 matter. 07557_ MHPKV4JKSDIS/9D9X&4,3SW 07557_ Acquired 25 matter. 07580_ Acquired 19 matter. 07584_ System corrupted: Matter fused (-8). 07599_ System corrupted: Heat flow error (+165). 07609_ ALERT: Potential suspicious activity detected, Programmers report to Factory Zone 6E. 07614_ System corrupted: Matter fused (-10). 07627_ EXIT=FOUND 07627_ W-25 Informer sends out distress signal. 07630_ System corrupted: Matter fused (-5). 07657_ Spear follow-up attack on Y-54 Guardian. 07659_ Wheel destroyed. 07662_ System corrupted: Heat flow error (+250). 07666_ Imp. Deuterium Engine destroyed. 07666_ Com. Wheel destroyed. 07669_ Imp. Sensor Array destroyed. Map ----- +----------------------------------------------------+ | | | | | | | | | | | | | | | | | | | | | | | | | | | | | | | | | | | | | | | | | | | ?##??????????????????????????????????????????????? | | #?????????######???????????????????????????????? | | #?????????# [ #####?????????????????????????? | | #?????????# # #####?????????????????????? | | #?????????# """ + @ #?????????????????????? | | #?????????# """ # ###Y#?????????????????????? | | =#?????????# """ ## ##?# #?????????????????????? | | #?????????# ??# #??# #?????????????????????? | | #####################+##?# #?????????????????????? | | + #?# #?????????????????????? | | ########### % #?# #?????????????????????? | | ??????????# #?# #?????????????????????? | | ??????????# #?# #?????????????????????? | | ??????????# """ """ #?? ??????????????????????? | | ########### """ """ #?? ??????????????????????? | | + ] """ """ #??